fUST/lending_fUST_20250616
["ID","MTS","AMOUNT","RATE_DAILY","PERIOD"]
[366141273,1750084247095,-1001.87,0.00023013,4]
[366141274,1750084247105,-1782.22,0.00023013,4]
[366141275,1750084247115,-165.03132259,0.00023014,2]
[366141276,1750084247126,-3000.0,0.0002302,2]
[366141277,1750084247137,-3000.0,0.0002303,2]
[366141278,1750084247147,-5000.0,0.00023032,2]
[366141279,1750084247159,-3000.0,0.0002304,2]
[366141280,1750084247169,-600.0,0.0002304,2]
[366141281,1750084247178,-3000.0,0.0002305,2]
[366141282,1750084247188,-500.0,0.00023051,2]
[366141283,1750084247199,-500.0,0.00023056,2]
[366141284,1750084247209,-3000.0,0.0002306,2]
[366141285,1750084247219,-216.0,0.00023065,2]
[366141286,1750084247232,-1500.0,0.00023069,2]
[366141287,1750084247241,-3000.0,0.0002307,2]
[366141288,1750084247251,-3000.0,0.0002308,2]
[366141289,1750084247261,-500.0,0.00023083,2]
[366141290,1750084247271,-3000.0,0.0002309,2]
[366141291,1750084247280,-3000.0,0.000231,2]
[366141292,1750084247289,-3000.0,0.0002311,2]
[366141293,1750084247299,-3000.0,0.0002312,2]
[366141294,1750084247311,-3000.0,0.0002313,2]
[366141295,1750084247321,-464.8,0.0002313,4]
[366141297,1750084247331,-3000.0,0.0002314,2]
[366141299,1750084247341,-3000.0,0.0002315,2]
[366141301,1750084247351,-165.03132259,0.00023151,2]
[366141303,1750084247360,-500.0,0.00023151,2]
[366141305,1750084247370,-3000.0,0.0002316,2]
[366141307,1750084247379,-151.0,0.0002316,7]
[366141309,1750084247389,-3000.0,0.0002317,2]
[366141311,1750084247398,-3000.0,0.0002318,2]
[366141329,1750084247556,-3000.0,0.0002319,2]
[366141331,1750084247567,-151.0,0.0002319,7]
[366141333,1750084247576,-981.09,0.000232,2]
[366141335,1750084247586,-3000.0,0.000232,2]
[366141337,1750084247595,-151.0,0.000232,9]
[366141339,1750084247605,-151.0,0.000232,7]
[366141341,1750084247614,-2001.96560727,0.000232,7]
[366141343,1750084247625,-3000.0,0.0002321,2]
[366141345,1750084247634,-3000.0,0.0002322,2]
[366141347,1750084247644,-3000.0,0.0002323,2]
[366141349,1750084247653,-2047.0,0.0002323,2]
[366141351,1750084247663,-500.0,0.00023234,2]
[366141353,1750084247672,-500.0,0.00023239,2]
[366141354,1750084247681,-3000.0,0.0002324,2]
[366141356,1750084247691,-2387.94271684,0.00023245,8]
[366141358,1750084247701,-500.0,0.00023247,2]
[366141361,1750084247711,-3000.0,0.0002325,2]
[366141363,1750084247721,-3000.0,0.0002326,2]
[366141365,1750084247731,-858.43347066,0.00023268,2]
[366141367,1750084247741,-1500.0,0.00023268,2]
[366141369,1750084247751,-1000.0,0.00023268,2]
[366141371,1750084247761,-3000.0,0.0002327,2]
[366141373,1750084247771,-3000.0,0.0002328,2]
[366141375,1750084247781,-1063.24869493,0.0002328,2]
[366141377,1750084247791,-153.014895,0.00023287,7]
[366141379,1750084247800,-500.0,0.00023287,7]
[366141381,1750084247810,-1425.2,0.00023287,4]
[366141383,1750084247819,-972.08,0.00023287,4]
[366141385,1750084247829,-819.84,0.00023287,4]
[366141387,1750084247839,-1156.0,0.00023287,4]
[366141389,1750084247848,-413.47092506,0.00023287,4]
[366141391,1750084247858,-460.0,0.00023287,4]
[366141393,1750084247868,-460.0,0.00023287,4]
[366141395,1750084247877,-151.0,0.00023287,7]
[366141397,1750084247887,-460.0,0.00023287,4]
[366141399,1750084247897,-460.0,0.00023287,4]
[366141401,1750084247907,-460.0,0.00023287,4]
[366141403,1750084247917,-540.77,0.00023287,4]
[366141405,1750084247927,-2497.27,0.00023287,4]
[366141407,1750084247936,-557.51,0.00023287,4]
[366141409,1750084247946,-1170.3,0.00023287,4]
[366141411,1750084247956,-1001.87,0.00023287,4]
[366141412,1750084247966,-1782.22,0.00023287,4]
[366141413,1750084247976,-3000.0,0.0002329,2]
[366141414,1750084247986,-500.0,0.00023294,2]
[366141415,1750084247996,-500.0,0.00023297,2]
[366141416,1750084248006,-3000.0,0.000233,2]
[366141417,1750084248017,-3000.0,0.0002331,2]
[366141418,1750084248027,-165.03132259,0.00023315,2]
[366141419,1750084248037,-3000.0,0.0002332,2]
[366141420,1750084248046,-3000.0,0.0002333,2]
[366141421,1750084248056,-800.0,0.00023335,2]
[366141422,1750084248066,-3000.0,0.0002334,2]
[366141423,1750084248076,-151.0,0.0002334,7]
[366141424,1750084248086,-151.0,0.0002334,7]
[366141425,1750084248096,-151.0,0.0002334,7]
[366141426,1750084248106,-3000.0,0.0002335,2]
[366141427,1750084248115,-151.0,0.0002335,7]
[366141428,1750084248125,-151.0,0.0002335,7]
[366141429,1750084248137,-151.0,0.0002335,7]
[366141430,1750084248152,-317.93440279,0.0002335,2]
[366141431,1750084248256,-4112.90879621,0.0002335,2]
[366141432,1750084248266,-4430.843199,0.0002335,2]
[366141433,1750084248276,-200.0,0.00023358,2]
[366141434,1750084248286,-151.0,0.00023359,7]
[366141435,1750084248296,-3000.0,0.0002336,2]
[366141436,1750084248306,-151.0,0.0002336,7]
[366141437,1750084248316,-151.0,0.00023362,7]
[366141438,1750084248326,-177.073212,0.0002337,2]
[366141439,1750084248335,-158.9308009,0.0002337,2]
[366141440,1750084248345,-573.9994554,0.0002337,2]
[366141441,1750084248358,-306.0,0.0002337,2]
[366141442,1750084248368,-158.9308009,0.0002337,2]
[366141443,1750084248378,-177.073212,0.0002337,2]
[366141444,1750084248388,-573.5747982,0.0002337,2]
[366141445,1750084248398,-153.0,0.0002337,2]
[366141446,1750084248407,-158.9308009,0.0002337,2]
[366141447,1750084248418,-175.2249018,0.0002337,2]
[366141448,1750084248428,-159.4339055,0.0002337,2]
[366141449,1750084248438,-153.0,0.0002337,2]
[366141450,1750084248448,-153.0,0.0002337,2]
[366141451,1750084248459,-153.0,0.0002337,2]
[366141452,1750084248469,-153.0,0.0002337,2]
[366141453,1750084248479,-153.0,0.0002337,2]
[366141454,1750084248490,-153.0,0.0002337,2]
[366141455,1750084248500,-153.0,0.0002337,2]
[366141456,1750084248510,-153.0,0.0002337,2]
[366141458,1750084248520,-3000.0,0.0002337,2]
[366141459,1750084248529,-3000.0,0.0002338,2]
[366141461,1750084248540,-160.0,0.00023384,3]
[366141463,1750084248549,-3000.0,0.0002339,2]
[366141466,1750084248560,-3000.0,0.000234,2]
[366141468,1750084248570,-151.0,0.000234,6]
[366141470,1750084248580,-151.0,0.000234,8]
[366141471,1750084248590,-5000.0,0.00023403,2]
[366141472,1750084248600,-151.0,0.00023403,7]
[366141473,1750084248611,-151.0,0.00023403,7]
[366141474,1750084248621,-151.0,0.00023403,7]
[366141475,1750084248633,-464.8,0.00023404,4]
[366141476,1750084248643,-3000.0,0.0002341,2]
[366141478,1750084248653,-3000.0,0.0002342,2]
[366141480,1750084248663,-3000.0,0.0002343,2]
[366141482,1750084248673,-4237.343077,0.0002344,2]
[366141483,1750084248683,-165.03132259,0.00023452,2]
[366141484,1750084248693,-502.4400778,0.00023459,2]
[366141485,1750084248703,-600.0,0.00023459,2]
[366141486,1750084248713,-500.0,0.00023459,2]
[366141487,1750084248723,-1500.0,0.00023459,2]
[366141488,1750084248733,-823.0,0.00023472,2]
[366141489,1750084248745,-823.0,0.00023474,2]
[366141490,1750084248755,-2387.94271684,0.00023486,9]
[366141491,1750084248765,-1070.316869,0.00023492,3]
[366141492,1750084248775,-168.01522086,0.000235,2]
[366141493,1750084248786,-510.64888868,0.00023531,9]
[366141494,1750084248796,-151.0,0.00023553,7]
[366141495,1750084248806,-151.0,0.00023553,7]
[366141496,1750084248816,-14068.87917337,0.00023553,2]
[366141497,1750084248829,-3099.33902263,0.00023553,2]
[366141498,1750084248839,-500.0,0.00023561,2]
[366141499,1750084248849,-1425.2,0.00023561,4]
[366141500,1750084248858,-972.08,0.00023561,4]
[366141501,1750084248868,-819.84,0.00023561,4]
[366141502,1750084248878,-1156.0,0.00023561,4]
[366141503,1750084248888,-460.0,0.00023561,4]
[366141504,1750084248898,-460.0,0.00023561,4]
[366141505,1750084248908,-460.0,0.00023561,4]
[366141506,1750084248917,-460.0,0.00023561,4]
[366141507,1750084248927,-460.0,0.00023561,4]
[366141508,1750084248937,-540.77,0.00023561,4]
[366141509,1750084248948,-2497.27,0.00023561,4]
[366141510,1750084248958,-557.51,0.00023561,4]
[366141511,1750084248968,-1170.3,0.00023561,4]
[366141512,1750084248978,-1001.87,0.00023561,4]
[366141513,1750084248987,-1782.22,0.00023561,4]
[366141514,1750084248998,-17168.218196,0.0002359,2]
[366141515,1750084249007,-151.0,0.000236,9]
[366141516,1750084249030,-151.0,0.000236,10]
[366141517,1750084249041,-151.0,0.000236,6]
[366141518,1750084249051,-47332.95894479,0.00023613,7]
[366141519,1750084249060,-800.0,0.00023616,2]
[366141520,1750084249070,-165.03132259,0.00023616,2]
[366141521,1750084249080,-1310.23252343,0.00023617,2]
[366141522,1750084249091,-160.557406,0.00023624,7]
[366141523,1750084249101,-151.0,0.00023624,7]
[366141524,1750084249111,-4430.843199,0.00023624,2]
[366141525,1750084249121,-4430.843199,0.00023624,2]
[366141526,1750084249131,-151.0,0.00023624,7]
[366141527,1750084249142,-17168.218196,0.00023624,2]
[366141528,1750084249152,-17168.218196,0.00023644,2]
[366141529,1750084249163,-151.0,0.00023644,7]
[366141530,1750084249174,-500.0,0.0002365,2]
[366141531,1750084249185,-500.0,0.0002365,2]
[366141532,1750084249195,-152.155345,0.00023661,7]
[366141533,1750084249206,-151.0,0.00023661,7]
[366141534,1750084249217,-151.0,0.00023661,7]
[366141535,1750084249227,-17168.218196,0.00023661,2]
[366141536,1750084249237,-5000.0,0.00023668,2]
[366141537,1750084249248,-5000.0,0.00023668,2]
[366141538,1750084249259,-5000.0,0.00023668,2]
[366141539,1750084249270,-17168.218196,0.00023674,2]
[366141540,1750084249280,-151.0,0.00023674,7]
[366141541,1750084249290,-215.0738,0.00023676,2]
[366141542,1750084249300,-464.8,0.00023678,4]
[366141543,1750084249310,-17168.218196,0.00023686,2]
[366141544,1750084249320,-17168.218196,0.00023686,2]
[366141545,1750084249331,-151.0,0.000237,6]
[366141546,1750084249341,-1857.650139,0.0002372,5]
[366141547,1750084249352,-2387.94271684,0.00023728,9]
[366141548,1750084249362,-12500.0,0.00023729,3]
[366141549,1750084249372,-500.0,0.00023737,2]
[366141550,1750084249382,-12500.0,0.00023738,3]
[366141551,1750084249392,-1000.0,0.0002374,5]
[366141552,1750084249402,-151.0,0.00023742,7]
[366141553,1750084249412,-151.0,0.00023742,7]
[366141554,1750084249422,-12500.0,0.00023747,3]
[366141555,1750084249432,-500.0,0.00023749,2]
[366141556,1750084249442,-12500.0,0.00023755,3]
[366141557,1750084249452,-1000.0,0.0002376,5]
[366141558,1750084249462,-12500.0,0.00023764,3]
[366141559,1750084249472,-12500.0,0.00023773,3]
[366141560,1750084249482,-1212.64575013,0.00023775,3]
[366141561,1750084249492,-853.19196929,0.00023775,3]
[366141562,1750084249502,-456.9146712,0.00023775,3]
[366141563,1750084249512,-1000.0,0.0002378,5]
[366141564,1750084249522,-502.17245355,0.0002378,2]
[366141565,1750084249532,-64029.20603024,0.00023788,2]
[366141566,1750084249542,-156.0,0.000238,2]
[366141567,1750084249552,-1000.0,0.000238,5]
[366141568,1750084249562,-13366.24786553,0.000238,2]
[366141569,1750084249572,-853187.24390313,0.000238,3]
[366141570,1750084249582,-6823.23432912,0.000238,5]
[366141571,1750084249592,-5000.0,0.00023814,2]
[366141572,1750084249602,-5000.0,0.00023814,2]
[366141573,1750084249613,-5000.0,0.00023814,2]
[366141574,1750084249622,-5000.0,0.00023814,2]
[366141575,1750084249632,-5000.0,0.00023814,2]
[366141576,1750084249642,-1000.0,0.0002382,5]
[366141577,1750084249652,-500.0,0.00023835,8]
[366141578,1750084249662,-1425.2,0.00023835,4]
[366141579,1750084249672,-972.08,0.00023835,4]
[366141580,1750084249682,-819.84,0.00023835,4]
[366141581,1750084249692,-1156.0,0.00023835,4]
[366141582,1750084249702,-460.0,0.00023835,4]
[366141583,1750084249712,-460.0,0.00023835,4]
[366141584,1750084249722,-460.0,0.00023835,4]
[366141585,1750084249732,-151.0,0.00023835,7]
[366141586,1750084249744,-460.0,0.00023835,4]
[366141587,1750084249754,-460.0,0.00023835,4]
[366141588,1750084249763,-540.77,0.00023835,4]
[366141589,1750084249773,-2497.27,0.00023835,4]
[366141590,1750084249784,-557.51,0.00023835,4]
[366141591,1750084249794,-1170.3,0.00023835,4]
[366141592,1750084249804,-1001.87,0.00023835,4]
[366141593,1750084249814,-1782.22,0.00023835,4]
[366141594,1750084249823,-1000.0,0.0002384,5]
[366141595,1750084249834,-151.0,0.0002384,7]
[366141596,1750084249845,-4430.843199,0.0002384,2]
[366141597,1750084249855,-4430.843199,0.0002384,2]
[366141598,1750084249865,-500.0,0.0002385,2]
[366141599,1750084249875,-500.0,0.00023856,2]
[366141600,1750084249885,-1000.0,0.0002386,5]
[366141601,1750084249895,-24609.43,0.0002387,2]
[366141602,1750084249905,-151.0,0.0002387,7]
[366141603,1750084249915,-800.0,0.0002387,2]
[366141604,1750084249925,-160.0,0.00023871,4]
[366141605,1750084249935,-1000.0,0.0002388,5]
[366141606,1750084249945,-500.0,0.00023889,2]
[366141607,1750084249955,-151.0,0.00023898,7]
[366141608,1750084249968,-151.0,0.00023898,7]
[366141609,1750084249979,-500.0,0.00023898,2]
[366141610,1750084249989,-1000.0,0.000239,5]
[366141611,1750084250000,-1351.877723,0.000239,2]
[366141612,1750084250010,-1014.38138275,0.000239,2]
[366141613,1750084250020,-500.0,0.00023901,2]
[366141614,1750084250161,-6671.28,0.0002391,2]
[366141615,1750084250171,-200.62640265,0.0002393,3]
[366141616,1750084250181,-317.0,0.0002393,3]
[366141617,1750084250192,-317.0,0.0002393,3]
[366141618,1750084250202,-317.0,0.0002393,3]
[366141619,1750084250212,-317.0,0.0002393,3]
[366141620,1750084250222,-329.85445623,0.0002393,3]
[366141621,1750084250234,-1746.0,0.0002393,3]
[366141622,1750084250243,-334.93634825,0.0002393,3]
[366141623,1750084250253,-259.73560002,0.00023933,2]
[366141624,1750084250263,-500.0,0.00023936,2]
[366141625,1750084250273,-500.0,0.00023937,2]
[366141626,1750084250283,-5000.0,0.00023951,2]
[366141627,1750084250292,-464.8,0.00023952,4]
[366141628,1750084250302,-2387.94271684,0.00023969,10]
[366141629,1750084250311,-2000.0,0.00023972,2]
[366141630,1750084250321,-1061.1395789,0.00023972,2]
[366141631,1750084250331,-26232.63215234,0.0002399,7]
[366141632,1750084250340,-147368.2007043,0.00024,7]
[366141633,1750084250354,-1196.21763495,0.00024,7]
[366141634,1750084250366,-1959.33086571,0.00024,7]
[366141635,1750084250379,-12011.93465905,0.00024,7]
[366141636,1750084250390,-789.55923631,0.00024,7]
[366141637,1750084250402,-533.2077441,0.00024,7]
[366141638,1750084250414,-9518.04,0.00024,7]
[366141639,1750084250425,-14264.8,0.00024,7]
[366141640,1750084250443,-10215.20861564,0.00024,7]
[366141641,1750084250455,-1161.31563875,0.00024,7]
[366141642,1750084250467,-431.2717105,0.00024,7]
[366141643,1750084250487,-460.0,0.00019178,2]
[366141644,1750084250500,-5323.41938326,0.00024,7]
[366141645,1750084250512,-44807.6905871,0.00024,7]
[366141646,1750084250523,-19645.36033412,0.00024,7]
[366141647,1750084250696,-550.0,0.00019177,2]
[366141648,1750084250706,-500.0,0.00019177,2]
[366141649,1750084250716,-460.0,0.00019178,2]
[366141650,1750084250726,-460.0,0.00019178,2]
[366141651,1750084250736,-460.0,0.00019452,4]
[366141652,1750084250746,-460.0,0.00019452,4]
[366141653,1750084250755,-460.0,0.00019726,4]
[366141654,1750084250765,-460.0,0.00019726,4]
[366141655,1750084250774,-460.0,0.0002,4]
[366141656,1750084250784,-460.0,0.0002,4]
[366141657,1750084250793,-460.0,0.00020273,4]
[366141658,1750084250803,-460.0,0.00020273,4]
[366141659,1750084250814,-460.0,0.00020547,4]
[366141660,1750084250823,-460.0,0.00020821,4]
[366141661,1750084250833,-151.0,0.00021815,2]
[366141662,1750084250843,-20853.04150759,0.00024,7]
[366141666,1750084338563,2550.0,0.000245,120]
[366141670,1750084534179,800.0,0.00015,2]
[366141674,1750084578374,163.505152,0.00013699,2]
[366141693,1750085218098,168.3649542,0.00017973,2]
[366141699,1750085353863,4671.5196115,0.00017558,2]
[366141780,1750085432087,-300.0,0.00018174,2]
[366141782,1750085432099,-300.0,0.00018174,2]
[366141784,1750085432111,-300.0,0.00018174,2]
[366141786,1750085432123,-259.91442991,0.00018174,2]
[366141789,1750085432139,-314.54692683,0.00018174,2]
[366141803,1750085432285,-625.53864326,0.00018174,2]
[366141805,1750085432296,-238.735223,0.00018175,2]
[366141807,1750085432309,-500.0,0.00018175,2]
[366141809,1750085432320,-500.0,0.00018175,2]
[366141810,1750085432332,-170.69932154,0.00018175,2]
[366141811,1750085432345,-500.0,0.00018175,2]
[366141813,1750085432356,-500.0,0.00018175,2]
[366141815,1750085432368,-541.88810657,0.00018175,2]
[366141817,1750085432380,-500.0,0.00018175,2]
[366141818,1750085432391,-500.0,0.00018175,2]
[366141819,1750085432402,-276.53062666,0.00018175,2]
[366141820,1750085432412,-500.0,0.00018175,2]
[366141821,1750085432423,-500.0,0.00018175,2]
[366141822,1750085432434,-224.22298608,0.00018175,2]
[366141823,1750085432446,-18328.82956409,0.00018176,2]
[366141824,1750085432465,-24900.0,0.00018176,2]
[366141825,1750085432477,-395.07659461,0.000189,2]
[366141826,1750085432493,-281.17766056,0.000189,2]
[366141827,1750085432506,-192.15274499,0.00019078,2]
[366141828,1750085432519,-160.0,0.00019163,2]
[366141829,1750085432533,-486.74240925,0.00019178,2]
[366141830,1750085432545,-420.0,0.00019178,2]
[366141831,1750085432560,-410.0,0.00019178,2]
[366141832,1750085432572,-118.55684317,0.00019178,2]
[366141833,1750085432588,-323.94688317,0.00019178,2]
[366141834,1750085432600,-255.24297421,0.00019178,2]
[366141835,1750085432612,-264.57872674,0.00019178,2]
[366141836,1750085432624,-401.79712192,0.00019178,2]
[366141837,1750085432638,-460.0,0.00019178,2]
[366141838,1750085432649,-380.0,0.00019178,2]
[366141839,1750085432661,-460.0,0.00019178,2]
[366141841,1750085432672,-460.0,0.00019178,2]
[366141842,1750085432683,-420.0,0.00019178,2]
[366141843,1750085432694,-460.0,0.00019178,2]
[366141844,1750085432706,-460.0,0.00019178,2]
[366141846,1750085432717,-410.0,0.00019178,2]
[366141847,1750085432728,-400.0,0.00019178,2]
[366141848,1750085432740,-460.0,0.00019178,2]
[366141849,1750085432751,-494.60559962,0.00019178,2]
[366141850,1750085432762,-420.0,0.00019178,2]
[366141851,1750085432773,-460.0,0.00019178,2]
[366141852,1750085432784,-500.0,0.00019178,2]
[366141853,1750085432795,-500.0,0.00019178,2]
[366141854,1750085432807,-500.0,0.00019178,2]
[366141855,1750085432818,-460.0,0.00019178,2]
[366141856,1750085432831,-340.0,0.00019178,2]
[366141857,1750085432842,-410.0,0.00019178,2]
[366141858,1750085432854,-420.0,0.00019178,2]
[366141859,1750085432864,-460.0,0.00019178,2]
[366141860,1750085432875,-420.0,0.00019178,2]
[366141861,1750085432886,-460.0,0.00019178,2]
[366141862,1750085432898,-420.0,0.00019178,2]
[366141863,1750085432909,-460.0,0.00019178,2]
[366141864,1750085432921,-261.44617847,0.00019178,2]
[366141865,1750085432935,-6.41295211,0.00019178,2]
[366141866,1750085432947,-420.0,0.00019178,2]
[366141867,1750085432959,-460.0,0.00019178,2]
[366141868,1750085432970,-96.57029185,0.00019178,2]
[366141869,1750085432985,-323.42970815,0.00019178,2]
[366141870,1750085432997,-164.69726715,0.00019178,2]
[366141906,1750085437823,-500.0,0.00019177,2]
[366141907,1750085437833,-12.63,0.00019177,2]
[366141908,1750085437845,-487.37,0.00019177,2]
[366141909,1750085437855,-430.00530177,0.00019177,2]
[366141910,1750085437866,-500.0,0.00019177,2]
[366141911,1750085437876,-500.0,0.00019177,2]
[366141912,1750085437886,-274.03974416,0.00019177,2]
[366141913,1750085437899,-225.96025584,0.00019177,2]
[366141914,1750085437908,-295.30273285,0.00019178,2]
[366141915,1750085437918,-460.0,0.00019178,2]
[366141916,1750085437927,-420.0,0.00019178,2]
[366141917,1750085437937,-348.57196544,0.00019178,2]
[366141918,1750085437947,-460.0,0.00019178,2]
[366141919,1750085437956,-460.0,0.00019178,2]
[366141920,1750085437966,-454.0,0.00019178,2]
[366141921,1750085437975,-460.0,0.00019178,2]
[366141922,1750085437985,-460.0,0.00019178,2]
[366141923,1750085437995,-460.0,0.00019178,2]
[366141924,1750085438006,-460.0,0.00019178,2]
[366141925,1750085438016,-680.49,0.00019178,2]
[366141926,1750085438025,-460.0,0.00019178,2]
[366141927,1750085438037,-460.0,0.00019178,2]
[366141928,1750085438046,-717.26,0.00019178,2]
[366141930,1750085438056,-460.0,0.00019178,2]
[366141931,1750085438066,-729.14,0.00019178,2]
[366141932,1750085438076,-460.0,0.00019178,2]
[366141933,1750085438087,-460.0,0.00019178,2]
[366141935,1750085438096,-460.0,0.00019178,2]
[366141937,1750085438106,-460.0,0.00019178,2]
[366141938,1750085438115,-460.0,0.00019178,2]
[366141939,1750085438126,-205.42819833,0.00019178,2]
[366141940,1750085438136,-460.0,0.00019178,2]
[366141941,1750085438146,-437.93213236,0.00019178,2]
[366141942,1750085438155,-460.0,0.00019178,2]
[366141943,1750085438165,-460.0,0.00019178,2]
[366141944,1750085438177,-460.0,0.00019178,2]
[366141945,1750085438187,-460.0,0.00019178,2]
[366141946,1750085438197,-460.0,0.00019178,2]
[366141947,1750085438207,-460.0,0.00019178,2]
[366141948,1750085438217,-460.0,0.00019178,2]
[366141949,1750085438227,-488.80465636,0.00019178,2]
[366141950,1750085438237,-460.0,0.00019178,2]
[366141951,1750085438247,-460.0,0.00019178,2]
[366141952,1750085438256,-460.0,0.00019178,2]
[366141953,1750085438266,-460.0,0.00019178,2]
[366141954,1750085438276,-420.0,0.00019178,2]
[366141955,1750085438287,-460.0,0.00019178,2]
[366141956,1750085438298,-460.0,0.00019178,2]
[366141957,1750085438308,-460.0,0.00019178,2]
[366141958,1750085438318,-460.0,0.00019178,2]
[366141959,1750085438327,-460.0,0.00019178,2]
[366141960,1750085438337,-202.73715954,0.00019178,2]
[366141961,1750085438347,-460.0,0.00019178,2]
[366141962,1750085438356,-460.0,0.00019178,2]
[366141963,1750085438366,-460.0,0.00019178,2]
[366141964,1750085438375,-460.0,0.00019178,2]
[366141965,1750085438385,-445.89,0.00019178,2]
[366141966,1750085438395,-460.0,0.00019178,2]
[366141967,1750085438404,-1180.72,0.00019178,2]
[366141968,1750085438414,-420.0,0.00019178,2]
[366141969,1750085438423,-460.0,0.00019178,2]
[366141970,1750085438432,-460.0,0.00019178,2]
[366141971,1750085438442,-604.16,0.00019178,2]
[366141972,1750085438451,-420.0,0.00019178,2]
[366141973,1750085438460,-783.98,0.00019178,2]
[366141974,1750085438470,-420.0,0.00019178,2]
[366141975,1750085438479,-460.0,0.00019178,2]
[366141976,1750085438489,-460.0,0.00019178,2]
[366141977,1750085438499,-460.0,0.00019178,2]
[366141978,1750085438508,-179.826006,0.00019178,2]
[366141979,1750085438518,-388.13210001,0.00019417,2]
[366141980,1750085438527,-160.0,0.00019451,2]
[366141981,1750085438538,-500.0,0.00019451,4]
[366141982,1750085438548,-926.77,0.00019451,4]
[366141983,1750085438560,-460.0,0.00019451,4]
[366141984,1750085438570,-295.78,0.00019452,4]
[366141985,1750085438580,-460.0,0.00019452,4]
[366141986,1750085438591,-460.0,0.00019452,2]
[366141987,1750085438602,-490.16,0.00019452,4]
[366141988,1750085438611,-460.0,0.00019452,4]
[366141989,1750085438621,-460.0,0.00019452,4]
[366141990,1750085438632,-460.0,0.00019452,4]
[366141991,1750085438643,-460.0,0.00019452,4]
[366141992,1750085438654,-460.0,0.00019452,4]
[366141993,1750085438663,-680.49,0.00019452,4]
[366141994,1750085438673,-460.0,0.00019452,4]
[366141995,1750085438683,-460.0,0.00019452,4]
[366141996,1750085438692,-717.26,0.00019452,4]
[366141997,1750085438702,-460.0,0.00019452,4]
[366141998,1750085438712,-729.14,0.00019452,4]
[366141999,1750085438721,-460.0,0.00019452,4]
[366142000,1750085438730,-460.0,0.00019452,4]
[366142001,1750085438739,-460.0,0.00019452,4]
[366142002,1750085438749,-460.0,0.00019452,4]
[366142003,1750085438759,-460.0,0.00019452,4]
[366142004,1750085438768,-492.67,0.00019452,4]
[366142005,1750085438778,-460.0,0.00019452,4]
[366142006,1750085438791,-460.0,0.00019452,4]
[366142007,1750085438801,-460.0,0.00019452,4]
[366142008,1750085438811,-460.0,0.00019452,4]
[366142009,1750085438820,-460.0,0.00019452,4]
[366142010,1750085438830,-460.0,0.00019452,4]
[366142011,1750085438840,-460.0,0.00019452,4]
[366142012,1750085438850,-460.0,0.00019452,4]
[366142013,1750085438859,-460.0,0.00019452,4]
[366142014,1750085438869,-460.0,0.00019452,4]
[366142015,1750085438879,-460.0,0.00019452,4]
[366142016,1750085438888,-460.0,0.00019452,4]
[366142017,1750085438898,-1180.72,0.00019452,4]
[366142018,1750085438907,-460.0,0.00019452,4]
[366142019,1750085438917,-604.16,0.00019452,4]
[366142020,1750085438927,-783.98,0.00019452,4]
[366142021,1750085438936,-460.0,0.00019452,2]
[366142022,1750085438946,-460.0,0.00019452,4]
[366142023,1750085438955,-460.0,0.00019452,4]
[366142024,1750085438964,-502.6969176,0.00019535,2]